Department family,Entity,Date,Expense Type,Expense area,Supplier,Transaction number,AP Amount (�)
Department of Health,NHS Barnsley CCG,31/01/2017,C&M-APMS Contract Value,PRC DELEGATED CO-COMMISSIONING,BARNSLEY HEALTHCARE FEDERATION,15611358,"24,181.58 "
Department of Health,NHS Barnsley CCG,31/01/2017,C&M-APMS OOH Opt Outs,PRC DELEGATED CO-COMMISSIONING,BARNSLEY HEALTHCARE FEDERATION,15611358,2.84 
Department of Health,NHS Barnsley CCG,31/01/2017,C&M-APMS Prem Actual Rent,PRC DELEGATED CO-COMMISSIONING,BARNSLEY HEALTHCARE FEDERATION,15611358,"1,429.55 "
Department of Health,NHS Barnsley CCG,31/01/2017,C&M-APMS Prem Rates,PRC DELEGATED CO-COMMISSIONING,BARNSLEY HEALTHCARE FEDERATION,15611358,377.52 
Department of Health,NHS Barnsley CCG,31/01/2017,C&M-APMS QOF Aspiration,PRC DELEGATED CO-COMMISSIONING,BARNSLEY HEALTHCARE FEDERATION,15611358,"2,248.38 "
Department of Health,NHS Barnsley CCG,31/01/2017,C&M-PMS Contract Value,PRC DELEGATED CO-COMMISSIONING,BARNSLEY HEALTHCARE FEDERATION,15611358,20.68 
Department of Health,NHS Barnsley CCG,31/01/2017,C&M-PMS Out of Hours Opt Outs,PRC DELEGATED CO-COMMISSIONING,BARNSLEY HEALTHCARE FEDERATION,15611358,15.23 
Department of Health,NHS Barnsley CCG,31/01/2017,C&M-APMS Contract Value,PRC DELEGATED CO-COMMISSIONING,BARNSLEY HEALTHCARE FEDERATION,15611361,"31,399.66 "
Department of Health,NHS Barnsley CCG,31/01/2017,C&M-APMS OOH Opt Outs,PRC DELEGATED CO-COMMISSIONING,BARNSLEY HEALTHCARE FEDERATION,15611361,316.42 
Department of Health,NHS Barnsley CCG,31/01/2017,C&M-APMS Prem Actual Rent,PRC DELEGATED CO-COMMISSIONING,BARNSLEY HEALTHCARE FEDERATION,15611361,"55,800.00 "
Department of Health,NHS Barnsley CCG,31/01/2017,C&M-APMS QOF Aspiration,PRC DELEGATED CO-COMMISSIONING,BARNSLEY HEALTHCARE FEDERATION,15611361,"2,478.09 "
Department of Health,NHS Barnsley CCG,31/01/2017,C&M-PMS Contract Value,PRC DELEGATED CO-COMMISSIONING,BARNSLEY HEALTHCARE FEDERATION,15611583,"(32,895.18)"
Department of Health,NHS Barnsley CCG,31/01/2017,C&M-PMS GP Statutory Levy,PRC DELEGATED CO-COMMISSIONING,BARNSLEY HEALTHCARE FEDERATION,15611583,(142.85)
Department of Health,NHS Barnsley CCG,31/01/2017,C&M-PMS Out of Hours Opt Outs,PRC DELEGATED CO-COMMISSIONING,BARNSLEY HEALTHCARE FEDERATION,15611583,(53.13)
Department of Health,NHS Barnsley CCG,31/01/2017,C&M-PMS Voluntary Levy,PRC DELEGATED CO-COMMISSIONING,BARNSLEY HEALTHCARE FEDERATION,15611583,(24.99)
Department of Health,NHS Barnsley CCG,31/01/2017,ME-PMS GP Pension EEs-PMS,PRC DELEGATED CO-COMMISSIONING,BARNSLEY HEALTHCARE FEDERATION,15611583,(704.17)
Department of Health,NHS Barnsley CCG,31/01/2017,ME-PMS GP Pension ERs Adjs - PMS,PRC DELEGATED CO-COMMISSIONING,BARNSLEY HEALTHCARE FEDERATION,15611583,(805.57)
Department of Health,NHS Barnsley CCG,31/01/2017,C&M-PMS Contract Value,PRC DELEGATED CO-COMMISSIONING,BARNSLEY HEALTHCARE FEDERATION,15611584,"69,503.43 "
Department of Health,NHS Barnsley CCG,31/01/2017,C&M-PMS Out of Hours Opt Outs,PRC DELEGATED CO-COMMISSIONING,BARNSLEY HEALTHCARE FEDERATION,15611584,"(1,765.12)"
Department of Health,NHS Barnsley CCG,31/01/2017,C&M-PMS Prem Healthcentre Rent,PRC DELEGATED CO-COMMISSIONING,BARNSLEY HEALTHCARE FEDERATION,15611584,"10,835.69 "
Department of Health,NHS Barnsley CCG,31/01/2017,C&M-PMS QOF Aspiration,PRC DELEGATED CO-COMMISSIONING,BARNSLEY HEALTHCARE FEDERATION,15611584,"4,195.24 "
Department of Health,NHS Barnsley CCG,31/01/2017,C&M-APMS OOH Opt Outs,PRC DELEGATED CO-COMMISSIONING,BARNSLEY HEALTHCARE FEDERATION,15635089,"30,466.58 "
Department of Health,NHS Barnsley CCG,31/01/2017,C&M-APMS Prem Actual Rent,PRC DELEGATED CO-COMMISSIONING,BARNSLEY HEALTHCARE FEDERATION,15635089,"25,800.00 "
Department of Health,NHS Barnsley CCG,31/01/2017,C&M-APMS Prem Other,PRC DELEGATED CO-COMMISSIONING,BARNSLEY HEALTHCARE FEDERATION,15635089,"67,954.84 "
Department of Health,NHS Barnsley CCG,31/01/2017,C&M-APMS Prem Rates,PRC DELEGATED CO-COMMISSIONING,BARNSLEY HEALTHCARE FEDERATION,15635089,"4,961.00 "
Department of Health,NHS Barnsley CCG,31/01/2017,C&M-APMS QOF Aspiration,PRC DELEGATED CO-COMMISSIONING,BARNSLEY HEALTHCARE FEDERATION,15635089,"1,999.71 "
Department of Health,NHS Barnsley CCG,31/01/2017,Miscellaneous Expenditure (L9),PROGRAMME PROJECTS,BARNSLEY HEALTHCARE FEDERATION,15693938,"128,107.00 "
Department of Health,NHS Barnsley CCG,31/01/2017,Miscellaneous Expenditure (L9),PROGRAMME PROJECTS,BARNSLEY HEALTHCARE FEDERATION,15836839,"128,319.00 "
Department of Health,NHS Barnsley CCG,31/01/2017,External Consultancy Fees,PROGRAMME PROJECTS,BARNSLEY HEALTHCARE FEDERATION,15836840,"37,355.16 "
Department of Health,NHS Barnsley CCG,31/01/2017,Miscellaneous Expenditure (L9),PROGRAMME PROJECTS,BARNSLEY HEALTHCARE FEDERATION,15867906,"128,160.00 "
Department of Health,NHS Barnsley CCG,31/01/2017,Clinical&Medical-Voluntary Sector,HOSPICES,BARNSLEY HOSPICE,15594736,"397,271.52 "
Department of Health,NHS Barnsley CCG,31/01/2017,Hcare Srv Rec Fdtn Trust-CQUIN,ACUTE COMMISSIONING,BARNSLEY HOSPITAL NHS FOUNDATION TRUST,15599030,"253,865.00 "
Department of Health,NHS Barnsley CCG,31/01/2017,Hcare Srv Rec Fdtn Trust-Contract Baseline,ACUTE COMMISSIONING,BARNSLEY HOSPITAL NHS FOUNDATION TRUST,15599030,"10,628,291.00 "
Department of Health,NHS Barnsley CCG,31/01/2017,Telecoms-Data lines,PRIMARY CARE IT,BARNSLEY HOSPITAL NHS FOUNDATION TRUST,15693958,"37,627.00 "
Department of Health,NHS Barnsley CCG,31/01/2017,Hcare Srv Rec Fdtn Trust-CQUIN,ACUTE COMMISSIONING,BARNSLEY HOSPITAL NHS FOUNDATION TRUST,15695145,"49,037.81 "
Department of Health,NHS Barnsley CCG,31/01/2017,Hcare Srv Rec Fdtn Trust-Contract Baseline,ACUTE COMMISSIONING,BARNSLEY HOSPITAL NHS FOUNDATION TRUST,15695145,"1,545,440.45 "
Department of Health,NHS Barnsley CCG,31/01/2017,Hcare Srv Rec Fdtn Trust-Contract Baseline,ACUTE COMMISSIONING,BARNSLEY HOSPITAL NHS FOUNDATION TRUST,15836841,"425,000.00 "
Department of Health,NHS Barnsley CCG,31/01/2017,Cont Care-Funded Nursing Care Allow,FUNDED NURSING CARE,BARNSLEY METROPOLITAN BOROUGH COUNCIL,15594737,"436,220.61 "
Department of Health,NHS Barnsley CCG,31/01/2017,Cont Care-Mental Health (<65),CHC ADULT JOINT FUNDED,BARNSLEY METROPOLITAN BOROUGH COUNCIL,15694122,"218,257.13 "
Department of Health,NHS Barnsley CCG,31/01/2017,Soc Care-Bed-Based Int Care Servs,COMMUNITY SERVICES,BARNSLEY METROPOLITAN BOROUGH COUNCIL,15695147,"921,250.00 "
Department of Health,NHS Barnsley CCG,31/01/2017,Soc Care-Maintaining Eligib Crit,COMMUNITY SERVICES,BARNSLEY METROPOLITAN BOROUGH COUNCIL,15695147,"1,186,250.00 "
Department of Health,NHS Barnsley CCG,31/01/2017,Soc Care-Other Soc Care,COMMUNITY SERVICES,BARNSLEY METROPOLITAN BOROUGH COUNCIL,15695147,"175,000.00 "
Department of Health,NHS Barnsley CCG,31/01/2017,Soc Care-Re-ablement services,COMMUNITY SERVICES,BARNSLEY METROPOLITAN BOROUGH COUNCIL,15695147,"12,250.00 "
Department of Health,NHS Barnsley CCG,31/01/2017,Social Care-Res Short Stay Exp,COMMUNITY SERVICES,BARNSLEY METROPOLITAN BOROUGH COUNCIL,15695147,"190,250.00 "
Department of Health,NHS Barnsley CCG,31/01/2017,Chrgs from SLA,COMMISSIONING,BARNSLEY METROPOLITAN BOROUGH COUNCIL,15695148,"50,000.00 "
Department of Health,NHS Barnsley CCG,31/01/2017,Clinical&Medical-Othe Public Sector,COMMISSIONING - NON ACUTE,BARNSLEY METROPOLITAN BOROUGH COUNCIL,15695148,"1,072,858.00 "
Department of Health,NHS Barnsley CCG,31/01/2017,Clinical&Medical-Othe Public Sector,MENTAL HEALTH SERVICES - OTHER,BARNSLEY METROPOLITAN BOROUGH COUNCIL,15695148,"75,843.00 "
Department of Health,NHS Barnsley CCG,31/01/2017,Clinical&Medical-Voluntary Sector,CHILD AND ADOLESCENT MENTAL HEALTH,BARNSLEY METROPOLITAN BOROUGH COUNCIL,15695148,"258,373.00 "
Department of Health,NHS Barnsley CCG,31/01/2017,Cont Care- Adult 100% Fully Funded,CHC ADULT FULLY FUNDED,BARNSLEY METROPOLITAN BOROUGH COUNCIL,15695148,"15,696.00 "
Department of Health,NHS Barnsley CCG,31/01/2017,Expenditure on Drugs Action Team,MENTAL HEALTH SERVICES - SPECIALIST SERVICES,BARNSLEY METROPOLITAN BOROUGH COUNCIL,15695148,"375,000.00 "
Department of Health,NHS Barnsley CCG,31/01/2017,GROSSRECOVEMPBEN - SALARIES & WAGES,COLLABORATIVE COMMISSIONING,BARNSLEY METROPOLITAN BOROUGH COUNCIL,15695148,"(14,498.00)"
Department of Health,NHS Barnsley CCG,31/01/2017,Local AuthorityRevenue-Non-Contract,COMMUNITY SERVICES,BARNSLEY METROPOLITAN BOROUGH COUNCIL,15695148,"(10,968.00)"
Department of Health,NHS Barnsley CCG,31/01/2017,Other professional fees,CONTINUING HEALTHCARE ASSESSMENT & SUPPORT,BARNSLEY METROPOLITAN BOROUGH COUNCIL,15695148,"4,956.00 "
Department of Health,NHS Barnsley CCG,31/01/2017,Participation Fees,COMMUNITY SERVICES,BARNSLEY METROPOLITAN BOROUGH COUNCIL,15695148,"35,250.00 "
Department of Health,NHS Barnsley CCG,31/01/2017,Services From Local Authorities,COMMISSIONING - NON ACUTE,BARNSLEY METROPOLITAN BOROUGH COUNCIL,15695148,"18,911.00 "
Department of Health,NHS Barnsley CCG,31/01/2017,Soc Care-Other Preventative Servs,COMMUNITY SERVICES,BARNSLEY METROPOLITAN BOROUGH COUNCIL,15695148,"40,000.00 "
Department of Health,NHS Barnsley CCG,31/01/2017,Cont Care-Other WGA,CHC CHILDREN,BARNSLEY METROPOLITAN BOROUGH COUNCIL,15779767,"256,207.68 "
Department of Health,NHS Barnsley CCG,31/01/2017,Cont Care-Other WGA,CHC CHILDREN,BARNSLEY METROPOLITAN BOROUGH COUNCIL,15780416,"41,702.91 "
Department of Health,NHS Barnsley CCG,31/01/2017,Cont Care-Other WGA,CHC CHILDREN,BARNSLEY METROPOLITAN BOROUGH COUNCIL,15780437,"35,193.93 "
Department of Health,NHS Barnsley CCG,31/01/2017,Soc Care-Bed-Based Int Care Servs,COMMUNITY SERVICES,BARNSLEY METROPOLITAN BOROUGH COUNCIL,15836293,"307,083.00 "
Department of Health,NHS Barnsley CCG,31/01/2017,Soc Care-Maintaining Eligib Crit,COMMUNITY SERVICES,BARNSLEY METROPOLITAN BOROUGH COUNCIL,15836293,"395,417.00 "
Department of Health,NHS Barnsley CCG,31/01/2017,Soc Care-Other Soc Care,COMMUNITY SERVICES,BARNSLEY METROPOLITAN BOROUGH COUNCIL,15836293,"58,333.00 "
Department of Health,NHS Barnsley CCG,31/01/2017,Soc Care-Re-ablement services,COMMUNITY SERVICES,BARNSLEY METROPOLITAN BOROUGH COUNCIL,15836293,"4,083.00 "
Department of Health,NHS Barnsley CCG,31/01/2017,Social Care-Res Short Stay Exp,COMMUNITY SERVICES,BARNSLEY METROPOLITAN BOROUGH COUNCIL,15836293,"63,417.00 "
Department of Health,NHS Barnsley CCG,31/01/2017,Chrgs from SLA,COMMISSIONING,BARNSLEY METROPOLITAN BOROUGH COUNCIL,15836308,"16,667.00 "
Department of Health,NHS Barnsley CCG,31/01/2017,Clinical&Medical-Othe Public Sector,COMMISSIONING - NON ACUTE,BARNSLEY METROPOLITAN BOROUGH COUNCIL,15836308,"357,619.00 "
Department of Health,NHS Barnsley CCG,31/01/2017,Clinical&Medical-Othe Public Sector,MENTAL HEALTH SERVICES - OTHER,BARNSLEY METROPOLITAN BOROUGH COUNCIL,15836308,"25,281.00 "
Department of Health,NHS Barnsley CCG,31/01/2017,Clinical&Medical-Voluntary Sector,CHILD AND ADOLESCENT MENTAL HEALTH,BARNSLEY METROPOLITAN BOROUGH COUNCIL,15836308,"28,709.00 "
Department of Health,NHS Barnsley CCG,31/01/2017,Cont Care- Adult 100% Fully Funded,CHC ADULT FULLY FUNDED,BARNSLEY METROPOLITAN BOROUGH COUNCIL,15836308,"5,232.00 "
Department of Health,NHS Barnsley CCG,31/01/2017,Expenditure on Drugs Action Team,MENTAL HEALTH SERVICES - SPECIALIST SERVICES,BARNSLEY METROPOLITAN BOROUGH COUNCIL,15836308,"41,666.00 "
Department of Health,NHS Barnsley CCG,31/01/2017,GROSSRECOVEMPBEN - SALARIES & WAGES,COLLABORATIVE COMMISSIONING,BARNSLEY METROPOLITAN BOROUGH COUNCIL,15836308,"(4,833.00)"
Department of Health,NHS Barnsley CCG,31/01/2017,Local AuthorityRevenue-Non-Contract,COMMUNITY SERVICES,BARNSLEY METROPOLITAN BOROUGH COUNCIL,15836308,"(3,656.00)"
Department of Health,NHS Barnsley CCG,31/01/2017,Participation Fees,COMMUNITY SERVICES,BARNSLEY METROPOLITAN BOROUGH COUNCIL,15836308,"11,750.00 "
Department of Health,NHS Barnsley CCG,31/01/2017,Services From Local Authorities,COMMISSIONING - NON ACUTE,BARNSLEY METROPOLITAN BOROUGH COUNCIL,15836308,"6,304.00 "
Department of Health,NHS Barnsley CCG,31/01/2017,Soc Care-Other Soc Care,COMMUNITY SERVICES,BARNSLEY METROPOLITAN BOROUGH COUNCIL,15836308,"25,000.00 "
Department of Health,NHS Barnsley CCG,31/01/2017,Cont Care-Learning Disab(<65),CHC ADULT FULLY FUNDED,BARNSLEY METROPOLITAN BOROUGH COUNCIL,15867910,"25,464.79 "
Department of Health,NHS Barnsley CCG,31/01/2017,Cont Care-Other WGA,CHC CHILDREN,BARNSLEY METROPOLITAN BOROUGH COUNCIL,15867947,"41,704.91 "
Department of Health,NHS Barnsley CCG,31/01/2017,Clinical&Medical-Commercial Sector,ACUTE COMMISSIONING,BMI HEALTHCARE COLLECTIONS,15556038,"37,156.35 "
Department of Health,NHS Barnsley CCG,31/01/2017,Clinical&Medical-Commercial Sector,ACUTE COMMISSIONING,BMI HEALTHCARE COLLECTIONS,15556048,"27,934.52 "
Department of Health,NHS Barnsley CCG,31/01/2017,Clinical&Medical-Commercial Sector,ACUTE COMMISSIONING,BMI HEALTHCARE COLLECTIONS,15836320,"37,156.35 "
Department of Health,NHS Barnsley CCG,31/01/2017,Clinical&Medical-Commercial Sector,OUT OF HOURS,CARE UK CLINICAL SERVICES LTD,15694039,"161,281.08 "
Department of Health,NHS Barnsley CCG,31/01/2017,Clinical&Medical-Commercial Sector,ACUTE COMMISSIONING,CARE UK CLINICAL SERVICES LTD,15694048,"27,286.07 "
Department of Health,NHS Barnsley CCG,31/01/2017,Clinical&Medical-Commercial Sector,ACUTE COMMISSIONING,CLAREMONT HOSPITAL,15720303,"48,289.00 "
Department of Health,NHS Barnsley CCG,31/01/2017,Cont Care-Learning Disab(<65),CHC ADULT FULLY FUNDED,COMMUNITY PLACES LTD,15661220,"41,655.25 "
Department of Health,NHS Barnsley CCG,31/01/2017,C&M-GMS Global Sum,PRC DELEGATED CO-COMMISSIONING,NHS BARNSLEY CCG GP PRACTICE,15847245,"73,894.62 "
Department of Health,NHS Barnsley CCG,31/01/2017,C&M-GMS Prem Healthcentre Rent,PRC DELEGATED CO-COMMISSIONING,NHS BARNSLEY CCG GP PRACTICE,15847245,"24,168.15 "
Department of Health,NHS Barnsley CCG,31/01/2017,C&M-GMS QOF Aspiration,PRC DELEGATED CO-COMMISSIONING,NHS BARNSLEY CCG GP PRACTICE,15847245,"6,825.50 "
Department of Health,NHS Barnsley CCG,31/01/2017,C&M-PMS Contract Value,PRC DELEGATED CO-COMMISSIONING,NHS BARNSLEY CCG GP PRACTICE,15611580,"(42,098.15)"
Department of Health,NHS Barnsley CCG,31/01/2017,C&M-PMS GP Statutory Levy,PRC DELEGATED CO-COMMISSIONING,NHS BARNSLEY CCG GP PRACTICE,15611580,(205.38)
Department of Health,NHS Barnsley CCG,31/01/2017,C&M-PMS Out of Hours Opt Outs,PRC DELEGATED CO-COMMISSIONING,NHS BARNSLEY CCG GP PRACTICE,15611580,(37.34)
Department of Health,NHS Barnsley CCG,31/01/2017,C&M-PMS Voluntary Levy,PRC DELEGATED CO-COMMISSIONING,NHS BARNSLEY CCG GP PRACTICE,15611580,(35.92)
Department of Health,NHS Barnsley CCG,31/01/2017,C&M-PMS Contract Value,PRC DELEGATED CO-COMMISSIONING,NHS BARNSLEY CCG GP PRACTICE,15611581,"88,321.86 "
Department of Health,NHS Barnsley CCG,31/01/2017,C&M-PMS Out of Hours Opt Outs,PRC DELEGATED CO-COMMISSIONING,NHS BARNSLEY CCG GP PRACTICE,15611581,"(2,247.88)"
Department of Health,NHS Barnsley CCG,31/01/2017,C&M-PMS Prem Notional Rent,PRC DELEGATED CO-COMMISSIONING,NHS BARNSLEY CCG GP PRACTICE,15611581,"28,675.00 "
Department of Health,NHS Barnsley CCG,31/01/2017,C&M-PMS QOF Aspiration,PRC DELEGATED CO-COMMISSIONING,NHS BARNSLEY CCG GP PRACTICE,15611581,"4,886.06 "
Department of Health,NHS Barnsley CCG,31/01/2017,Hcare Srv Rec Fdtn Trust-CQUIN,ACUTE COMMISSIONING,DONCASTER AND BASSETLAW HOSPITALS NHS FOUNDATION TRUST,15552237,"6,490.00 "
Department of Health,NHS Barnsley CCG,31/01/2017,Hcare Srv Rec Fdtn Trust-Contract Baseline,ACUTE COMMISSIONING,DONCASTER AND BASSETLAW HOSPITALS NHS FOUNDATION TRUST,15552237,"558,167.00 "
Department of Health,NHS Barnsley CCG,31/01/2017,Hcare Srv Rec Fdtn Trust-CQUIN,ACUTE COMMISSIONING,DONCASTER AND BASSETLAW HOSPITALS NHS FOUNDATION TRUST,15867914,"6,490.00 "
Department of Health,NHS Barnsley CCG,31/01/2017,C&M-PMS Contract Value,PRC DELEGATED CO-COMMISSIONING,NHS BARNSLEY CCG GP PRACTICE,15611332,"(80,103.99)"
Department of Health,NHS Barnsley CCG,31/01/2017,C&M-PMS GP Statutory Levy,PRC DELEGATED CO-COMMISSIONING,NHS BARNSLEY CCG GP PRACTICE,15611332,(357.33)
Department of Health,NHS Barnsley CCG,31/01/2017,C&M-PMS Out of Hours Opt Outs,PRC DELEGATED CO-COMMISSIONING,NHS BARNSLEY CCG GP PRACTICE,15611332,(64.54)
Department of Health,NHS Barnsley CCG,31/01/2017,C&M-PMS Voluntary Levy,PRC DELEGATED CO-COMMISSIONING,NHS BARNSLEY CCG GP PRACTICE,15611332,(62.50)
Department of Health,NHS Barnsley CCG,31/01/2017,ME-PMS GP Pension EEs-PMS,PRC DELEGATED CO-COMMISSIONING,NHS BARNSLEY CCG GP PRACTICE,15611332,"(7,931.25)"
Department of Health,NHS Barnsley CCG,31/01/2017,ME-PMS GP Pension ERs Adjs - PMS,PRC DELEGATED CO-COMMISSIONING,NHS BARNSLEY CCG GP PRACTICE,15611332,"(8,401.24)"
Department of Health,NHS Barnsley CCG,31/01/2017,C&M-PMS Contract Value,PRC DELEGATED CO-COMMISSIONING,NHS BARNSLEY CCG GP PRACTICE,15611333,"165,167.60 "
Department of Health,NHS Barnsley CCG,31/01/2017,C&M-PMS Out of Hours Opt Outs,PRC DELEGATED CO-COMMISSIONING,NHS BARNSLEY CCG GP PRACTICE,15611333,"(4,310.87)"
Department of Health,NHS Barnsley CCG,31/01/2017,C&M-PMS Prem Healthcentre Rent,PRC DELEGATED CO-COMMISSIONING,NHS BARNSLEY CCG GP PRACTICE,15611333,"19,781.47 "
Department of Health,NHS Barnsley CCG,31/01/2017,C&M-PMS Prem Notional Rent,PRC DELEGATED CO-COMMISSIONING,NHS BARNSLEY CCG GP PRACTICE,15611333,"1,833.33 "
Department of Health,NHS Barnsley CCG,31/01/2017,C&M-PMS Prem Rates,PRC DELEGATED CO-COMMISSIONING,NHS BARNSLEY CCG GP PRACTICE,15611333,270.23 
Department of Health,NHS Barnsley CCG,31/01/2017,C&M-PMS QOF Aspiration,PRC DELEGATED CO-COMMISSIONING,NHS BARNSLEY CCG GP PRACTICE,15611333,"9,268.60 "
Department of Health,NHS Barnsley CCG,31/01/2017,C&M-PMS Contract Value,PRC DELEGATED CO-COMMISSIONING,NHS BARNSLEY CCG GP PRACTICE,15611335,"28,512.10 "
Department of Health,NHS Barnsley CCG,31/01/2017,C&M-PMS DES Minor Surgery,PRC DELEGATED CO-COMMISSIONING,NHS BARNSLEY CCG GP PRACTICE,15611335,383.58 
Department of Health,NHS Barnsley CCG,31/01/2017,C&M-PMS Out of Hours Opt Outs,PRC DELEGATED CO-COMMISSIONING,NHS BARNSLEY CCG GP PRACTICE,15611335,(753.61)
Department of Health,NHS Barnsley CCG,31/01/2017,C&M-PMS Prem Actual Rent,PRC DELEGATED CO-COMMISSIONING,NHS BARNSLEY CCG GP PRACTICE,15611335,674.50 
Department of Health,NHS Barnsley CCG,31/01/2017,C&M-PMS QOF Aspiration,PRC DELEGATED CO-COMMISSIONING,NHS BARNSLEY CCG GP PRACTICE,15611335,"1,375.99 "
Department of Health,NHS Barnsley CCG,31/01/2017,C&M-PMS Contract Value,PRC DELEGATED CO-COMMISSIONING,NHS BARNSLEY CCG GP PRACTICE,15611336,"(42,224.08)"
Department of Health,NHS Barnsley CCG,31/01/2017,C&M-PMS GP Statutory Levy,PRC DELEGATED CO-COMMISSIONING,NHS BARNSLEY CCG GP PRACTICE,15611336,(224.14)
Department of Health,NHS Barnsley CCG,31/01/2017,C&M-PMS Out of Hours Opt Outs,PRC DELEGATED CO-COMMISSIONING,NHS BARNSLEY CCG GP PRACTICE,15611336,(67.90)
Department of Health,NHS Barnsley CCG,31/01/2017,C&M-PMS Voluntary Levy,PRC DELEGATED CO-COMMISSIONING,NHS BARNSLEY CCG GP PRACTICE,15611336,(39.21)
Department of Health,NHS Barnsley CCG,31/01/2017,ME-PMS GP Pension EEs-PMS,PRC DELEGATED CO-COMMISSIONING,NHS BARNSLEY CCG GP PRACTICE,15611336,"(3,522.50)"
Department of Health,NHS Barnsley CCG,31/01/2017,ME-PMS GP Pension ERs Adjs - PMS,PRC DELEGATED CO-COMMISSIONING,NHS BARNSLEY CCG GP PRACTICE,15611336,"(3,598.83)"
Department of Health,NHS Barnsley CCG,31/01/2017,C&M-PMS Contract Value,PRC DELEGATED CO-COMMISSIONING,NHS BARNSLEY CCG GP PRACTICE,15611337,"89,848.30 "
Department of Health,NHS Barnsley CCG,31/01/2017,C&M-PMS Out of Hours Opt Outs,PRC DELEGATED CO-COMMISSIONING,NHS BARNSLEY CCG GP PRACTICE,15611337,"(2,381.67)"
Department of Health,NHS Barnsley CCG,31/01/2017,C&M-PMS Prem Healthcentre Rent,PRC DELEGATED CO-COMMISSIONING,NHS BARNSLEY CCG GP PRACTICE,15611337,"21,557.03 "
Department of Health,NHS Barnsley CCG,31/01/2017,C&M-PMS QOF Aspiration,PRC DELEGATED CO-COMMISSIONING,NHS BARNSLEY CCG GP PRACTICE,15611337,"4,879.28 "
Department of Health,NHS Barnsley CCG,31/01/2017,C&M-GMS DES Learn Dsblty Hlth Chk,PRC DELEGATED CO-COMMISSIONING,NHS BARNSLEY CCG GP PRACTICE,15847247,116.00 
Department of Health,NHS Barnsley CCG,31/01/2017,C&M-GMS Global Sum,PRC DELEGATED CO-COMMISSIONING,NHS BARNSLEY CCG GP PRACTICE,15847247,"67,123.92 "
Department of Health,NHS Barnsley CCG,31/01/2017,C&M-GMS Prem Notional Rent,PRC DELEGATED CO-COMMISSIONING,NHS BARNSLEY CCG GP PRACTICE,15847247,"4,483.33 "
Department of Health,NHS Barnsley CCG,31/01/2017,C&M-GMS Prem Rates,PRC DELEGATED CO-COMMISSIONING,NHS BARNSLEY CCG GP PRACTICE,15847247,"1,751.93 "
Department of Health,NHS Barnsley CCG,31/01/2017,C&M-GMS QOF Aspiration,PRC DELEGATED CO-COMMISSIONING,NHS BARNSLEY CCG GP PRACTICE,15847247,"8,046.05 "
Department of Health,NHS Barnsley CCG,31/01/2017,C&M-GMS DES Minor Surgery,PRC DELEGATED CO-COMMISSIONING,NHS BARNSLEY CCG GP PRACTICE,15847249,"2,770.30 "
Department of Health,NHS Barnsley CCG,31/01/2017,C&M-GMS Global Sum,PRC DELEGATED CO-COMMISSIONING,NHS BARNSLEY CCG GP PRACTICE,15847249,"62,135.82 "
Department of Health,NHS Barnsley CCG,31/01/2017,C&M-GMS Prem Healthcentre Rent,PRC DELEGATED CO-COMMISSIONING,NHS BARNSLEY CCG GP PRACTICE,15847249,"3,289.55 "
Department of Health,NHS Barnsley CCG,31/01/2017,C&M-GMS Prem Rates,PRC DELEGATED CO-COMMISSIONING,NHS BARNSLEY CCG GP PRACTICE,15847249,677.60 
Department of Health,NHS Barnsley CCG,31/01/2017,C&M-GMS QOF Aspiration,PRC DELEGATED CO-COMMISSIONING,NHS BARNSLEY CCG GP PRACTICE,15847249,"6,884.36 "
Department of Health,NHS Barnsley CCG,31/01/2017,C&M-PMS Contract Value,PRC DELEGATED CO-COMMISSIONING,NHS BARNSLEY CCG GP PRACTICE,15611340,"(108,559.55)"
Department of Health,NHS Barnsley CCG,31/01/2017,C&M-PMS GP Statutory Levy,PRC DELEGATED CO-COMMISSIONING,NHS BARNSLEY CCG GP PRACTICE,15611340,(560.14)
Department of Health,NHS Barnsley CCG,31/01/2017,C&M-PMS Out of Hours Opt Outs,PRC DELEGATED CO-COMMISSIONING,NHS BARNSLEY CCG GP PRACTICE,15611340,(133.18)
Department of Health,NHS Barnsley CCG,31/01/2017,C&M-PMS Voluntary Levy,PRC DELEGATED CO-COMMISSIONING,NHS BARNSLEY CCG GP PRACTICE,15611340,(97.98)
Department of Health,NHS Barnsley CCG,31/01/2017,ME - PMS TPS Added Years Adj EEs,PRC DELEGATED CO-COMMISSIONING,NHS BARNSLEY CCG GP PRACTICE,15611340,(610.96)
Department of Health,NHS Barnsley CCG,31/01/2017,ME-PMS GP Pension EEs-PMS,PRC DELEGATED CO-COMMISSIONING,NHS BARNSLEY CCG GP PRACTICE,15611340,"(13,675.09)"
Department of Health,NHS Barnsley CCG,31/01/2017,ME-PMS GP Pension ERs Adjs - PMS,PRC DELEGATED CO-COMMISSIONING,NHS BARNSLEY CCG GP PRACTICE,15611340,"(14,201.82)"
Department of Health,NHS Barnsley CCG,31/01/2017,C&M-PMS Baseline Adjustment,PRC DELEGATED CO-COMMISSIONING,NHS BARNSLEY CCG GP PRACTICE,15611341,188.08 
Department of Health,NHS Barnsley CCG,31/01/2017,C&M-PMS Contract Value,PRC DELEGATED CO-COMMISSIONING,NHS BARNSLEY CCG GP PRACTICE,15611341,"228,450.10 "
Department of Health,NHS Barnsley CCG,31/01/2017,C&M-PMS Out of Hours Opt Outs,PRC DELEGATED CO-COMMISSIONING,NHS BARNSLEY CCG GP PRACTICE,15611341,"(5,753.11)"
Department of Health,NHS Barnsley CCG,31/01/2017,C&M-PMS Prem Actual Rent,PRC DELEGATED CO-COMMISSIONING,NHS BARNSLEY CCG GP PRACTICE,15611341,"24,600.00 "
Department of Health,NHS Barnsley CCG,31/01/2017,C&M-PMS Prem Notional Rent,PRC DELEGATED CO-COMMISSIONING,NHS BARNSLEY CCG GP PRACTICE,15611341,"6,333.33 "
Department of Health,NHS Barnsley CCG,31/01/2017,C&M-PMS Prem Rates,PRC DELEGATED CO-COMMISSIONING,NHS BARNSLEY CCG GP PRACTICE,15611341,"3,043.55 "
Department of Health,NHS Barnsley CCG,31/01/2017,C&M-PMS QOF Aspiration,PRC DELEGATED CO-COMMISSIONING,NHS BARNSLEY CCG GP PRACTICE,15611341,"13,009.21 "
Department of Health,NHS Barnsley CCG,31/01/2017,C&M-PMS Cost of Drugs -Dispensing,LOCAL ENHANCED SERVICES,NHS BARNSLEY CCG GP PRACTICE,15867508,"(68,426.82)"
Department of Health,NHS Barnsley CCG,31/01/2017,C&M-PMS Prsc Chrgs Cll&Rmttd by GPs,PRC DELEGATED CO-COMMISSIONING,NHS BARNSLEY CCG GP PRACTICE,15867508,"(3,780.00)"
Department of Health,NHS Barnsley CCG,31/01/2017,C&M-PMS Cost of Drugs -Dispensing,LOCAL ENHANCED SERVICES,NHS BARNSLEY CCG GP PRACTICE,15867509,"164,316.27 "
Department of Health,NHS Barnsley CCG,31/01/2017,C&M-PMS Prof fees Dispensing,PRC DELEGATED CO-COMMISSIONING,NHS BARNSLEY CCG GP PRACTICE,15867509,"23,258.32 "
Department of Health,NHS Barnsley CCG,31/01/2017,C&M-PMS Prsc Chrgs Cll&Rmttd by GPs,LOCAL ENHANCED SERVICES,NHS BARNSLEY CCG GP PRACTICE,15867509,"3,780.00 "
Department of Health,NHS Barnsley CCG,31/01/2017,C&M-GMS DES Minor Surgery,PRC DELEGATED CO-COMMISSIONING,NHS BARNSLEY CCG GP PRACTICE,15847251,383.58 
Department of Health,NHS Barnsley CCG,31/01/2017,C&M-GMS Global Sum,PRC DELEGATED CO-COMMISSIONING,NHS BARNSLEY CCG GP PRACTICE,15847251,"36,869.04 "
Department of Health,NHS Barnsley CCG,31/01/2017,C&M-GMS Prem Actual Rent,PRC DELEGATED CO-COMMISSIONING,NHS BARNSLEY CCG GP PRACTICE,15847251,"9,212.50 "
Department of Health,NHS Barnsley CCG,31/01/2017,C&M-GMS Prem Notional Rent,PRC DELEGATED CO-COMMISSIONING,NHS BARNSLEY CCG GP PRACTICE,15847251,"1,416.67 "
Department of Health,NHS Barnsley CCG,31/01/2017,C&M-GMS Prem Rates,PRC DELEGATED CO-COMMISSIONING,NHS BARNSLEY CCG GP PRACTICE,15847251,"1,042.62 "
Department of Health,NHS Barnsley CCG,31/01/2017,C&M-GMS Prem Water Rates,PRC DELEGATED CO-COMMISSIONING,NHS BARNSLEY CCG GP PRACTICE,15847251,100.65 
Department of Health,NHS Barnsley CCG,31/01/2017,C&M-GMS QOF Aspiration,PRC DELEGATED CO-COMMISSIONING,NHS BARNSLEY CCG GP PRACTICE,15847251,"3,898.31 "
Department of Health,NHS Barnsley CCG,31/01/2017,C&M-PMS Contract Value,PRC DELEGATED CO-COMMISSIONING,NHS BARNSLEY CCG GP PRACTICE,15611338,"(39,672.31)"
Department of Health,NHS Barnsley CCG,31/01/2017,C&M-PMS GP Statutory Levy,PRC DELEGATED CO-COMMISSIONING,NHS BARNSLEY CCG GP PRACTICE,15611338,(157.65)
Department of Health,NHS Barnsley CCG,31/01/2017,C&M-PMS Out of Hours Opt Outs,PRC DELEGATED CO-COMMISSIONING,NHS BARNSLEY CCG GP PRACTICE,15611338,(31.46)
Department of Health,NHS Barnsley CCG,31/01/2017,C&M-PMS Prem Healthcentre Rent,PRC DELEGATED CO-COMMISSIONING,NHS BARNSLEY CCG GP PRACTICE,15611338,(0.16)
Department of Health,NHS Barnsley CCG,31/01/2017,C&M-PMS Voluntary Levy,PRC DELEGATED CO-COMMISSIONING,NHS BARNSLEY CCG GP PRACTICE,15611338,(27.58)
Department of Health,NHS Barnsley CCG,31/01/2017,ME-PMS GP Pension EEs-PMS,PRC DELEGATED CO-COMMISSIONING,NHS BARNSLEY CCG GP PRACTICE,15611338,"(1,350.92)"
Department of Health,NHS Barnsley CCG,31/01/2017,ME-PMS GP Pension ERs Adjs - PMS,PRC DELEGATED CO-COMMISSIONING,NHS BARNSLEY CCG GP PRACTICE,15611338,"(1,332.28)"
Department of Health,NHS Barnsley CCG,31/01/2017,C&M-PMS Baseline Adjustment,PRC DELEGATED CO-COMMISSIONING,NHS BARNSLEY CCG GP PRACTICE,15611339,"5,074.17 "
Department of Health,NHS Barnsley CCG,31/01/2017,C&M-PMS Contract Value,PRC DELEGATED CO-COMMISSIONING,NHS BARNSLEY CCG GP PRACTICE,15611339,"77,230.97 "
Department of Health,NHS Barnsley CCG,31/01/2017,C&M-PMS Out of Hours Opt Outs,PRC DELEGATED CO-COMMISSIONING,NHS BARNSLEY CCG GP PRACTICE,15611339,"(1,806.05)"
Department of Health,NHS Barnsley CCG,31/01/2017,C&M-PMS Prem Healthcentre Rent,PRC DELEGATED CO-COMMISSIONING,NHS BARNSLEY CCG GP PRACTICE,15611339,"2,989.68 "
Department of Health,NHS Barnsley CCG,31/01/2017,C&M-PMS Prem Notional Rent,PRC DELEGATED CO-COMMISSIONING,NHS BARNSLEY CCG GP PRACTICE,15611339,"7,833.33 "
Department of Health,NHS Barnsley CCG,31/01/2017,C&M-PMS Prem Rates,PRC DELEGATED CO-COMMISSIONING,NHS BARNSLEY CCG GP PRACTICE,15611339,"2,414.27 "
Department of Health,NHS Barnsley CCG,31/01/2017,C&M-PMS Prem Water Rates,PRC DELEGATED CO-COMMISSIONING,NHS BARNSLEY CCG GP PRACTICE,15611339,171.74 
Department of Health,NHS Barnsley CCG,31/01/2017,C&M-PMS QOF Aspiration,PRC DELEGATED CO-COMMISSIONING,NHS BARNSLEY CCG GP PRACTICE,15611339,"2,466.00 "
Department of Health,NHS Barnsley CCG,31/01/2017,C&M-GMS GP Statutory Levy,PRC DELEGATED CO-COMMISSIONING,NHS BARNSLEY CCG GP PRACTICE,15847254,(442.76)
Department of Health,NHS Barnsley CCG,31/01/2017,C&M-GMS Voluntary Levy,PRC DELEGATED CO-COMMISSIONING,NHS BARNSLEY CCG GP PRACTICE,15847254,(77.45)
Department of Health,NHS Barnsley CCG,31/01/2017,ME - GMS TPS Added Years Adj EEs,PRC DELEGATED CO-COMMISSIONING,NHS BARNSLEY CCG GP PRACTICE,15847254,"(1,466.25)"
Department of Health,NHS Barnsley CCG,31/01/2017,ME-GMS GP Pension EEs,PRC DELEGATED CO-COMMISSIONING,NHS BARNSLEY CCG GP PRACTICE,15847254,"(11,548.85)"
Department of Health,NHS Barnsley CCG,31/01/2017,ME-GMS GP Pension ERs Adjustments,PRC DELEGATED CO-COMMISSIONING,NHS BARNSLEY CCG GP PRACTICE,15847254,"(11,804.77)"
Department of Health,NHS Barnsley CCG,31/01/2017,C&M-GMS Global Sum,PRC DELEGATED CO-COMMISSIONING,NHS BARNSLEY CCG GP PRACTICE,15847255,"95,631.70 "
Department of Health,NHS Barnsley CCG,31/01/2017,C&M-GMS Prem Notional Rent,PRC DELEGATED CO-COMMISSIONING,NHS BARNSLEY CCG GP PRACTICE,15847255,"6,208.33 "
Department of Health,NHS Barnsley CCG,31/01/2017,C&M-GMS Prem Rates,PRC DELEGATED CO-COMMISSIONING,NHS BARNSLEY CCG GP PRACTICE,15847255,"2,078.16 "
Department of Health,NHS Barnsley CCG,31/01/2017,C&M-GMS QOF Aspiration,PRC DELEGATED CO-COMMISSIONING,NHS BARNSLEY CCG GP PRACTICE,15847255,"10,127.48 "
Department of Health,NHS Barnsley CCG,31/01/2017,C&M-PMS Contract Value,PRC DELEGATED CO-COMMISSIONING,NHS BARNSLEY CCG GP PRACTICE,15611342,"(83,041.03)"
Department of Health,NHS Barnsley CCG,31/01/2017,C&M-PMS GP Statutory Levy,PRC DELEGATED CO-COMMISSIONING,NHS BARNSLEY CCG GP PRACTICE,15611342,(396.19)
Department of Health,NHS Barnsley CCG,31/01/2017,C&M-PMS Out of Hours Opt Outs,PRC DELEGATED CO-COMMISSIONING,NHS BARNSLEY CCG GP PRACTICE,15611342,(71.82)
Department of Health,NHS Barnsley CCG,31/01/2017,C&M-PMS Voluntary Levy,PRC DELEGATED CO-COMMISSIONING,NHS BARNSLEY CCG GP PRACTICE,15611342,(69.30)
Department of Health,NHS Barnsley CCG,31/01/2017,ME - PMS TPS Added Years Adj EEs,PRC DELEGATED CO-COMMISSIONING,NHS BARNSLEY CCG GP PRACTICE,15611342,(585.27)
Department of Health,NHS Barnsley CCG,31/01/2017,ME-PMS GP Pension EEs-PMS,PRC DELEGATED CO-COMMISSIONING,NHS BARNSLEY CCG GP PRACTICE,15611342,"(7,539.34)"
Department of Health,NHS Barnsley CCG,31/01/2017,ME-PMS GP Pension ERs Adjs - PMS,PRC DELEGATED CO-COMMISSIONING,NHS BARNSLEY CCG GP PRACTICE,15611342,"(7,678.24)"
Department of Health,NHS Barnsley CCG,31/01/2017,C&M-PMS Contract Value,PRC DELEGATED CO-COMMISSIONING,NHS BARNSLEY CCG GP PRACTICE,15611343,"174,181.14 "
Department of Health,NHS Barnsley CCG,31/01/2017,C&M-PMS Out of Hours Opt Outs,PRC DELEGATED CO-COMMISSIONING,NHS BARNSLEY CCG GP PRACTICE,15611343,"(4,616.05)"
Department of Health,NHS Barnsley CCG,31/01/2017,C&M-PMS Prem Notional Rent,PRC DELEGATED CO-COMMISSIONING,NHS BARNSLEY CCG GP PRACTICE,15611343,"13,500.00 "
Department of Health,NHS Barnsley CCG,31/01/2017,C&M-PMS Prem Rates,PRC DELEGATED CO-COMMISSIONING,NHS BARNSLEY CCG GP PRACTICE,15611343,520.30 
Department of Health,NHS Barnsley CCG,31/01/2017,C&M-PMS QOF Aspiration,PRC DELEGATED CO-COMMISSIONING,NHS BARNSLEY CCG GP PRACTICE,15611343,"9,037.78 "
Department of Health,NHS Barnsley CCG,31/01/2017,C&M-GMS Global Sum,PRC DELEGATED CO-COMMISSIONING,NHS BARNSLEY CCG GP PRACTICE,15847253,"85,541.61 "
Department of Health,NHS Barnsley CCG,31/01/2017,C&M-GMS Prem Healthcentre Rent,PRC DELEGATED CO-COMMISSIONING,NHS BARNSLEY CCG GP PRACTICE,15847253,"31,619.95 "
Department of Health,NHS Barnsley CCG,31/01/2017,C&M-GMS QOF Aspiration,PRC DELEGATED CO-COMMISSIONING,NHS BARNSLEY CCG GP PRACTICE,15847253,"9,007.62 "
Department of Health,NHS Barnsley CCG,31/01/2017,C&M-GMS GP Statutory Levy,PRC DELEGATED CO-COMMISSIONING,NHS BARNSLEY CCG GP PRACTICE,15847256,(334.57)
Department of Health,NHS Barnsley CCG,31/01/2017,C&M-GMS Prem Actual Rent,PRC DELEGATED CO-COMMISSIONING,NHS BARNSLEY CCG GP PRACTICE,15847256,"(33,727.50)"
Department of Health,NHS Barnsley CCG,31/01/2017,C&M-GMS Voluntary Levy,PRC DELEGATED CO-COMMISSIONING,NHS BARNSLEY CCG GP PRACTICE,15847256,(58.52)
Department of Health,NHS Barnsley CCG,31/01/2017,ME-GMS GP Pension EEs,PRC DELEGATED CO-COMMISSIONING,NHS BARNSLEY CCG GP PRACTICE,15847256,"(4,987.51)"
Department of Health,NHS Barnsley CCG,31/01/2017,ME-GMS GP Pension ERs Adjustments,PRC DELEGATED CO-COMMISSIONING,NHS BARNSLEY CCG GP PRACTICE,15847256,"(5,124.16)"
Department of Health,NHS Barnsley CCG,31/01/2017,C&M-GMS DES UNPLANNED ADMISSIONS,PRC DELEGATED CO-COMMISSIONING,NHS BARNSLEY CCG GP PRACTICE,15847257,"7,666.89 "
Department of Health,NHS Barnsley CCG,31/01/2017,C&M-GMS Global Sum,PRC DELEGATED CO-COMMISSIONING,NHS BARNSLEY CCG GP PRACTICE,15847257,"71,076.84 "
Department of Health,NHS Barnsley CCG,31/01/2017,C&M-GMS Prem Actual Rent,PRC DELEGATED CO-COMMISSIONING,NHS BARNSLEY CCG GP PRACTICE,15847257,"58,050.00 "
Department of Health,NHS Barnsley CCG,31/01/2017,C&M-GMS Prem Rates,PRC DELEGATED CO-COMMISSIONING,NHS BARNSLEY CCG GP PRACTICE,15847257,"2,534.70 "
Department of Health,NHS Barnsley CCG,31/01/2017,C&M-GMS QOF Aspiration,PRC DELEGATED CO-COMMISSIONING,NHS BARNSLEY CCG GP PRACTICE,15847257,"9,545.99 "
Department of Health,NHS Barnsley CCG,31/01/2017,C&M-PMS Contract Value,PRC DELEGATED CO-COMMISSIONING,NHS BARNSLEY CCG GP PRACTICE,15611344,"(74,620.84)"
Department of Health,NHS Barnsley CCG,31/01/2017,C&M-PMS GP Statutory Levy,PRC DELEGATED CO-COMMISSIONING,NHS BARNSLEY CCG GP PRACTICE,15611344,(398.69)
Department of Health,NHS Barnsley CCG,31/01/2017,C&M-PMS Out of Hours Opt Outs,PRC DELEGATED CO-COMMISSIONING,NHS BARNSLEY CCG GP PRACTICE,15611344,(266.88)
Department of Health,NHS Barnsley CCG,31/01/2017,C&M-PMS Voluntary Levy,PRC DELEGATED CO-COMMISSIONING,NHS BARNSLEY CCG GP PRACTICE,15611344,(69.74)
Department of Health,NHS Barnsley CCG,31/01/2017,ME - PMS TPS Added Years Adj EEs,PRC DELEGATED CO-COMMISSIONING,NHS BARNSLEY CCG GP PRACTICE,15611344,(266.67)
Department of Health,NHS Barnsley CCG,31/01/2017,ME-PMS GP Pension EEs-PMS,PRC DELEGATED CO-COMMISSIONING,NHS BARNSLEY CCG GP PRACTICE,15611344,"(7,526.25)"
Department of Health,NHS Barnsley CCG,31/01/2017,ME-PMS GP Pension ERs Adjs - PMS,PRC DELEGATED CO-COMMISSIONING,NHS BARNSLEY CCG GP PRACTICE,15611344,"(8,186.76)"
Department of Health,NHS Barnsley CCG,31/01/2017,C&M-PMS Contract Value,PRC DELEGATED CO-COMMISSIONING,NHS BARNSLEY CCG GP PRACTICE,15611345,"161,630.23 "
Department of Health,NHS Barnsley CCG,31/01/2017,C&M-PMS Out of Hours Opt Outs,PRC DELEGATED CO-COMMISSIONING,NHS BARNSLEY CCG GP PRACTICE,15611345,"(4,208.83)"
Department of Health,NHS Barnsley CCG,31/01/2017,C&M-PMS Prem Notional Rent,PRC DELEGATED CO-COMMISSIONING,NHS BARNSLEY CCG GP PRACTICE,15611345,"8,125.00 "
Department of Health,NHS Barnsley CCG,31/01/2017,C&M-PMS Prem Rates,PRC DELEGATED CO-COMMISSIONING,NHS BARNSLEY CCG GP PRACTICE,15611345,951.98 
Department of Health,NHS Barnsley CCG,31/01/2017,C&M-PMS QOF Aspiration,PRC DELEGATED CO-COMMISSIONING,NHS BARNSLEY CCG GP PRACTICE,15611345,"9,498.69 "
Department of Health,NHS Barnsley CCG,31/01/2017,C&M-GMS Global Sum,PRC DELEGATED CO-COMMISSIONING,NHS BARNSLEY CCG GP PRACTICE,15847259,"21,755.18 "
Department of Health,NHS Barnsley CCG,31/01/2017,C&M-GMS Prem Notional Rent,PRC DELEGATED CO-COMMISSIONING,NHS BARNSLEY CCG GP PRACTICE,15847259,"1,572.92 "
Department of Health,NHS Barnsley CCG,31/01/2017,C&M-GMS Prem Rates,PRC DELEGATED CO-COMMISSIONING,NHS BARNSLEY CCG GP PRACTICE,15847259,433.58 
Department of Health,NHS Barnsley CCG,31/01/2017,C&M-GMS QOF Aspiration,PRC DELEGATED CO-COMMISSIONING,NHS BARNSLEY CCG GP PRACTICE,15847259,"2,279.92 "
Department of Health,NHS Barnsley CCG,31/01/2017,C&M-PMS Contract Value,PRC DELEGATED CO-COMMISSIONING,NHS BARNSLEY CCG GP PRACTICE,15611346,"(78,437.25)"
Department of Health,NHS Barnsley CCG,31/01/2017,C&M-PMS DES Extended Hours Access,PRC DELEGATED CO-COMMISSIONING,NHS BARNSLEY CCG GP PRACTICE,15611346,(147.08)
Department of Health,NHS Barnsley CCG,31/01/2017,C&M-PMS GP Statutory Levy,PRC DELEGATED CO-COMMISSIONING,NHS BARNSLEY CCG GP PRACTICE,15611346,(376.93)
Department of Health,NHS Barnsley CCG,31/01/2017,C&M-PMS Out of Hours Opt Outs,PRC DELEGATED CO-COMMISSIONING,NHS BARNSLEY CCG GP PRACTICE,15611346,(128.96)
Department of Health,NHS Barnsley CCG,31/01/2017,C&M-PMS Voluntary Levy,PRC DELEGATED CO-COMMISSIONING,NHS BARNSLEY CCG GP PRACTICE,15611346,(65.93)
Department of Health,NHS Barnsley CCG,31/01/2017,ME-PMS GP Pension EEs-PMS,PRC DELEGATED CO-COMMISSIONING,NHS BARNSLEY CCG GP PRACTICE,15611346,"(6,209.58)"
Department of Health,NHS Barnsley CCG,31/01/2017,ME-PMS GP Pension ERs Adjs - PMS,PRC DELEGATED CO-COMMISSIONING,NHS BARNSLEY CCG GP PRACTICE,15611346,"(6,542.26)"
Department of Health,NHS Barnsley CCG,31/01/2017,C&M-PMS Contract Value,PRC DELEGATED CO-COMMISSIONING,NHS BARNSLEY CCG GP PRACTICE,15611347,"166,960.69 "
Department of Health,NHS Barnsley CCG,31/01/2017,C&M-PMS Out of Hours Opt Outs,PRC DELEGATED CO-COMMISSIONING,NHS BARNSLEY CCG GP PRACTICE,15611347,"(4,424.42)"
Department of Health,NHS Barnsley CCG,31/01/2017,C&M-PMS Prem Actual Rent,PRC DELEGATED CO-COMMISSIONING,NHS BARNSLEY CCG GP PRACTICE,15611347,"12,708.33 "
Department of Health,NHS Barnsley CCG,31/01/2017,C&M-PMS Prem Rates,PRC DELEGATED CO-COMMISSIONING,NHS BARNSLEY CCG GP PRACTICE,15611347,"2,153.66 "
Department of Health,NHS Barnsley CCG,31/01/2017,C&M-PMS QOF Aspiration,PRC DELEGATED CO-COMMISSIONING,NHS BARNSLEY CCG GP PRACTICE,15611347,"9,731.41 "
Department of Health,NHS Barnsley CCG,31/01/2017,C&M-PMS Contract Value,PRC DELEGATED CO-COMMISSIONING,NHS BARNSLEY CCG GP PRACTICE,15611348,"144,652.22 "
Department of Health,NHS Barnsley CCG,31/01/2017,C&M-PMS DES Learn Dsblty Hlth Chk,PRC DELEGATED CO-COMMISSIONING,NHS BARNSLEY CCG GP PRACTICE,15611348,"4,872.00 "
Department of Health,NHS Barnsley CCG,31/01/2017,C&M-PMS Out of Hours Opt Outs,PRC DELEGATED CO-COMMISSIONING,NHS BARNSLEY CCG GP PRACTICE,15611348,"(3,820.17)"
Department of Health,NHS Barnsley CCG,31/01/2017,C&M-PMS Prem Actual Rent,PRC DELEGATED CO-COMMISSIONING,NHS BARNSLEY CCG GP PRACTICE,15611348,"8,566.67 "
Department of Health,NHS Barnsley CCG,31/01/2017,C&M-PMS Prem Rates,PRC DELEGATED CO-COMMISSIONING,NHS BARNSLEY CCG GP PRACTICE,15611348,"1,428.89 "
Department of Health,NHS Barnsley CCG,31/01/2017,C&M-PMS QOF Aspiration,PRC DELEGATED CO-COMMISSIONING,NHS BARNSLEY CCG GP PRACTICE,15611348,"7,252.24 "
Department of Health,NHS Barnsley CCG,31/01/2017,C&M-PMS Contract Value,PRC DELEGATED CO-COMMISSIONING,NHS BARNSLEY CCG GP PRACTICE,15635088,"(67,727.16)"
Department of Health,NHS Barnsley CCG,31/01/2017,C&M-PMS Out of Hours Opt Outs,PRC DELEGATED CO-COMMISSIONING,NHS BARNSLEY CCG GP PRACTICE,15635088,(137.00)
Department of Health,NHS Barnsley CCG,31/01/2017,ME - PMS GP Prior Year ERs,PRC DELEGATED CO-COMMISSIONING,NHS BARNSLEY CCG GP PRACTICE,15635088,"(3,357.45)"
Department of Health,NHS Barnsley CCG,31/01/2017,ME-PMS GP Pension EEs-PMS,PRC DELEGATED CO-COMMISSIONING,NHS BARNSLEY CCG GP PRACTICE,15635088,"(3,350.26)"
Department of Health,NHS Barnsley CCG,31/01/2017,ME-PMS GP Pension ERs Adjs - PMS,PRC DELEGATED CO-COMMISSIONING,NHS BARNSLEY CCG GP PRACTICE,15635088,"(3,542.24)"
Department of Health,NHS Barnsley CCG,31/01/2017,ME-PMS GP Prior Year EEs,PRC DELEGATED CO-COMMISSIONING,NHS BARNSLEY CCG GP PRACTICE,15635088,"(2,929.60)"
Department of Health,NHS Barnsley CCG,31/01/2017,C&M-GMS DES Minor Surgery,PRC DELEGATED CO-COMMISSIONING,NHS BARNSLEY CCG GP PRACTICE,15847261,127.86 
Department of Health,NHS Barnsley CCG,31/01/2017,C&M-GMS Global Sum,PRC DELEGATED CO-COMMISSIONING,NHS BARNSLEY CCG GP PRACTICE,15847261,"51,824.24 "
Department of Health,NHS Barnsley CCG,31/01/2017,C&M-GMS Prem Healthcentre Rent,PRC DELEGATED CO-COMMISSIONING,NHS BARNSLEY CCG GP PRACTICE,15847261,"20,522.19 "
Department of Health,NHS Barnsley CCG,31/01/2017,C&M-GMS QOF Aspiration,PRC DELEGATED CO-COMMISSIONING,NHS BARNSLEY CCG GP PRACTICE,15847261,"5,719.94 "
Department of Health,NHS Barnsley CCG,31/01/2017,C&M-PMS Contract Value,PRC DELEGATED CO-COMMISSIONING,NHS BARNSLEY CCG GP PRACTICE,15611349,"(85,148.90)"
Department of Health,NHS Barnsley CCG,31/01/2017,C&M-PMS GP Statutory Levy,PRC DELEGATED CO-COMMISSIONING,NHS BARNSLEY CCG GP PRACTICE,15611349,(437.46)
Department of Health,NHS Barnsley CCG,31/01/2017,C&M-PMS Out of Hours Opt Outs,PRC DELEGATED CO-COMMISSIONING,NHS BARNSLEY CCG GP PRACTICE,15611349,(94.51)
Department of Health,NHS Barnsley CCG,31/01/2017,C&M-PMS Voluntary Levy,PRC DELEGATED CO-COMMISSIONING,NHS BARNSLEY CCG GP PRACTICE,15611349,(76.52)
Department of Health,NHS Barnsley CCG,31/01/2017,ME-PMS GP Pension EEs-PMS,PRC DELEGATED CO-COMMISSIONING,NHS BARNSLEY CCG GP PRACTICE,15611349,"(6,753.36)"
Department of Health,NHS Barnsley CCG,31/01/2017,ME-PMS GP Pension ERs Adjs - PMS,PRC DELEGATED CO-COMMISSIONING,NHS BARNSLEY CCG GP PRACTICE,15611349,"(7,565.93)"
Department of Health,NHS Barnsley CCG,31/01/2017,C&M-PMS Contract Value,PRC DELEGATED CO-COMMISSIONING,NHS BARNSLEY CCG GP PRACTICE,15611350,"179,313.57 "
Department of Health,NHS Barnsley CCG,31/01/2017,C&M-PMS Out of Hours Opt Outs,PRC DELEGATED CO-COMMISSIONING,NHS BARNSLEY CCG GP PRACTICE,15611350,"(4,748.80)"
Department of Health,NHS Barnsley CCG,31/01/2017,C&M-PMS Prem Actual Rent,PRC DELEGATED CO-COMMISSIONING,NHS BARNSLEY CCG GP PRACTICE,15611350,"53,481.25 "
Department of Health,NHS Barnsley CCG,31/01/2017,C&M-PMS Prem Rates,PRC DELEGATED CO-COMMISSIONING,NHS BARNSLEY CCG GP PRACTICE,15611350,"2,348.33 "
Department of Health,NHS Barnsley CCG,31/01/2017,C&M-PMS QOF Aspiration,PRC DELEGATED CO-COMMISSIONING,NHS BARNSLEY CCG GP PRACTICE,15611350,"11,102.10 "
Department of Health,NHS Barnsley CCG,31/01/2017,C&M-GMS DES Minor Surgery,PRC DELEGATED CO-COMMISSIONING,NHS BARNSLEY CCG GP PRACTICE,15847265,"4,730.82 "
Department of Health,NHS Barnsley CCG,31/01/2017,C&M-GMS Global Sum,PRC DELEGATED CO-COMMISSIONING,NHS BARNSLEY CCG GP PRACTICE,15847265,"42,328.22 "
Department of Health,NHS Barnsley CCG,31/01/2017,C&M-GMS Prem Notional Rent,PRC DELEGATED CO-COMMISSIONING,NHS BARNSLEY CCG GP PRACTICE,15847265,"2,541.67 "
Department of Health,NHS Barnsley CCG,31/01/2017,C&M-GMS Prem Rates,PRC DELEGATED CO-COMMISSIONING,NHS BARNSLEY CCG GP PRACTICE,15847265,973.29 
Department of Health,NHS Barnsley CCG,31/01/2017,C&M-GMS QOF Aspiration,PRC DELEGATED CO-COMMISSIONING,NHS BARNSLEY CCG GP PRACTICE,15847265,"3,306.22 "
Department of Health,NHS Barnsley CCG,31/01/2017,C&M-PMS Prem Healthcentre Rent,PRC DELEGATED CO-COMMISSIONING,NHS BARNSLEY CCG GP PRACTICE,15577020,"(51,401.12)"
Department of Health,NHS Barnsley CCG,31/01/2017,Income tax <1Yr,BALANCE SHEET,HMRC,15711947,"54,894.30 "
Department of Health,NHS Barnsley CCG,31/01/2017,Income tax <1Yr-Student Loans,BALANCE SHEET,HMRC,15711947,"1,646.00 "
Department of Health,NHS Barnsley CCG,31/01/2017,National Insurance < 1 yr-NI- ERS,BALANCE SHEET,HMRC,15711947,"37,783.69 "
Department of Health,NHS Barnsley CCG,31/01/2017,National Insurance < 1 yr-NI-EES,BALANCE SHEET,HMRC,15711947,"27,070.58 "
Department of Health,NHS Barnsley CCG,31/01/2017,Statutory Mat Pay < 1 yr,BALANCE SHEET,HMRC,15711947,"(1,669.33)"
Department of Health,NHS Barnsley CCG,31/01/2017,C&M-GMS DES Minor Surgery,PRC DELEGATED CO-COMMISSIONING,NHS BARNSLEY CCG GP PRACTICE,15847267,"2,898.16 "
Department of Health,NHS Barnsley CCG,31/01/2017,C&M-GMS Global Sum,PRC DELEGATED CO-COMMISSIONING,NHS BARNSLEY CCG GP PRACTICE,15847267,"77,698.82 "
Department of Health,NHS Barnsley CCG,31/01/2017,C&M-GMS Prem Healthcentre Rent,PRC DELEGATED CO-COMMISSIONING,NHS BARNSLEY CCG GP PRACTICE,15847267,"22,577.78 "
Department of Health,NHS Barnsley CCG,31/01/2017,C&M-GMS Prem Notional Rent,PRC DELEGATED CO-COMMISSIONING,NHS BARNSLEY CCG GP PRACTICE,15847267,"1,312.50 "
Department of Health,NHS Barnsley CCG,31/01/2017,C&M-GMS Prem Rates,PRC DELEGATED CO-COMMISSIONING,NHS BARNSLEY CCG GP PRACTICE,15847267,653.40 
Department of Health,NHS Barnsley CCG,31/01/2017,C&M-GMS Prem Water Rates,PRC DELEGATED CO-COMMISSIONING,NHS BARNSLEY CCG GP PRACTICE,15847267,58.91 
Department of Health,NHS Barnsley CCG,31/01/2017,C&M-GMS QOF Aspiration,PRC DELEGATED CO-COMMISSIONING,NHS BARNSLEY CCG GP PRACTICE,15847267,"8,766.44 "
Department of Health,NHS Barnsley CCG,31/01/2017,C&M-PMS Contract Value,PRC DELEGATED CO-COMMISSIONING,NHS BARNSLEY CCG GP PRACTICE,15611351,"(44,156.29)"
Department of Health,NHS Barnsley CCG,31/01/2017,C&M-PMS DES Extended Hours Access,PRC DELEGATED CO-COMMISSIONING,NHS BARNSLEY CCG GP PRACTICE,15611351,"(5,981.20)"
Department of Health,NHS Barnsley CCG,31/01/2017,C&M-PMS GP Statutory Levy,PRC DELEGATED CO-COMMISSIONING,NHS BARNSLEY CCG GP PRACTICE,15611351,(212.48)
Department of Health,NHS Barnsley CCG,31/01/2017,C&M-PMS Out of Hours Opt Outs,PRC DELEGATED CO-COMMISSIONING,NHS BARNSLEY CCG GP PRACTICE,15611351,(62.97)
Department of Health,NHS Barnsley CCG,31/01/2017,C&M-PMS Voluntary Levy,PRC DELEGATED CO-COMMISSIONING,NHS BARNSLEY CCG GP PRACTICE,15611351,(37.17)
Department of Health,NHS Barnsley CCG,31/01/2017,ME-PMS GP Pension EEs-PMS,PRC DELEGATED CO-COMMISSIONING,NHS BARNSLEY CCG GP PRACTICE,15611351,(846.79)
Department of Health,NHS Barnsley CCG,31/01/2017,ME-PMS GP Pension ERs Adjs - PMS,PRC DELEGATED CO-COMMISSIONING,NHS BARNSLEY CCG GP PRACTICE,15611351,(896.97)
Department of Health,NHS Barnsley CCG,31/01/2017,C&M-PMS Baseline Adjustment,PRC DELEGATED CO-COMMISSIONING,NHS BARNSLEY CCG GP PRACTICE,15611352,"3,001.58 "
Department of Health,NHS Barnsley CCG,31/01/2017,C&M-PMS Contract Value,PRC DELEGATED CO-COMMISSIONING,NHS BARNSLEY CCG GP PRACTICE,15611352,"89,388.34 "
Department of Health,NHS Barnsley CCG,31/01/2017,C&M-PMS Out of Hours Opt Outs,PRC DELEGATED CO-COMMISSIONING,NHS BARNSLEY CCG GP PRACTICE,15611352,"(2,155.39)"
Department of Health,NHS Barnsley CCG,31/01/2017,C&M-PMS Prem Healthcentre Rent,PRC DELEGATED CO-COMMISSIONING,NHS BARNSLEY CCG GP PRACTICE,15611352,"5,694.47 "
Department of Health,NHS Barnsley CCG,31/01/2017,C&M-PMS Prem Notional Rent,PRC DELEGATED CO-COMMISSIONING,NHS BARNSLEY CCG GP PRACTICE,15611352,"3,583.33 "
Department of Health,NHS Barnsley CCG,31/01/2017,C&M-PMS QOF Aspiration,PRC DELEGATED CO-COMMISSIONING,NHS BARNSLEY CCG GP PRACTICE,15611352,"4,198.69 "
Department of Health,NHS Barnsley CCG,31/01/2017,External Data Contracts,COMMISSIONING SCHEMES,KIER BUSINESS SERVICES LTD,15594771,"22,440.00 "
Department of Health,NHS Barnsley CCG,31/01/2017,External Data Contracts,CORPORATE COSTS & SERVICES,KIER BUSINESS SERVICES LTD,15594771,"11,953.00 "
Department of Health,NHS Barnsley CCG,31/01/2017,Telecoms-Data lines,PRIMARY CARE IT,KIER BUSINESS SERVICES LTD,15594771,"51,354.00 "
Department of Health,NHS Barnsley CCG,31/01/2017,C&M-PMS Baseline Adjustment,PRC DELEGATED CO-COMMISSIONING,NHS BARNSLEY CCG GP PRACTICE,15611582,"1,386.00 "
Department of Health,NHS Barnsley CCG,31/01/2017,C&M-PMS Contract Value,PRC DELEGATED CO-COMMISSIONING,NHS BARNSLEY CCG GP PRACTICE,15611582,"47,157.47 "
Department of Health,NHS Barnsley CCG,31/01/2017,C&M-PMS Out of Hours Opt Outs,PRC DELEGATED CO-COMMISSIONING,NHS BARNSLEY CCG GP PRACTICE,15611582,"(1,151.58)"
Department of Health,NHS Barnsley CCG,31/01/2017,C&M-PMS Prem Notional Rent,PRC DELEGATED CO-COMMISSIONING,NHS BARNSLEY CCG GP PRACTICE,15611582,"4,145.83 "
Department of Health,NHS Barnsley CCG,31/01/2017,C&M-PMS Prem Rates,PRC DELEGATED CO-COMMISSIONING,NHS BARNSLEY CCG GP PRACTICE,15611582,762.30 
Department of Health,NHS Barnsley CCG,31/01/2017,C&M-PMS QOF Aspiration,PRC DELEGATED CO-COMMISSIONING,NHS BARNSLEY CCG GP PRACTICE,15611582,"1,890.25 "
Department of Health,NHS Barnsley CCG,31/01/2017,C&M-PMS Contract Value,PRC DELEGATED CO-COMMISSIONING,NHS BARNSLEY CCG GP PRACTICE,15635087,"(22,994.75)"
Department of Health,NHS Barnsley CCG,31/01/2017,C&M-PMS Out of Hours Opt Outs,PRC DELEGATED CO-COMMISSIONING,NHS BARNSLEY CCG GP PRACTICE,15635087,(46.60)
Department of Health,NHS Barnsley CCG,31/01/2017,ME - PMS TPS Added Years Adj EEs,PRC DELEGATED CO-COMMISSIONING,NHS BARNSLEY CCG GP PRACTICE,15635087,(80.00)
Department of Health,NHS Barnsley CCG,31/01/2017,ME-PMS GP Pension EEs-PMS,PRC DELEGATED CO-COMMISSIONING,NHS BARNSLEY CCG GP PRACTICE,15635087,(778.77)
Department of Health,NHS Barnsley CCG,31/01/2017,ME-PMS GP Pension ERs Adjs - PMS,PRC DELEGATED CO-COMMISSIONING,NHS BARNSLEY CCG GP PRACTICE,15635087,(975.57)
Department of Health,NHS Barnsley CCG,31/01/2017,ME-PMS GP Prudential,PRC DELEGATED CO-COMMISSIONING,NHS BARNSLEY CCG GP PRACTICE,15635087,(640.00)
Department of Health,NHS Barnsley CCG,31/01/2017,C&M-PMS Cost of Drugs -Dispensing,LOCAL ENHANCED SERVICES,NHS BARNSLEY CCG GP PRACTICE,15868465,"30,663.23 "
Department of Health,NHS Barnsley CCG,31/01/2017,C&M-PMS Prof fees Dispensing,PRC DELEGATED CO-COMMISSIONING,NHS BARNSLEY CCG GP PRACTICE,15868465,"5,298.95 "
Department of Health,NHS Barnsley CCG,31/01/2017,C&M-PMS Prsc Chrgs Cll&Rmttd by GPs,LOCAL ENHANCED SERVICES,NHS BARNSLEY CCG GP PRACTICE,15868465,"1,503.60 "
Department of Health,NHS Barnsley CCG,31/01/2017,C&M-APMS Contract Value,PRC DELEGATED CO-COMMISSIONING,NHS BARNSLEY CCG GP PRACTICE,15611356,"17,005.38 "
Department of Health,NHS Barnsley CCG,31/01/2017,C&M-APMS OOH Opt Outs,PRC DELEGATED CO-COMMISSIONING,NHS BARNSLEY CCG GP PRACTICE,15611356,(827.83)
Department of Health,NHS Barnsley CCG,31/01/2017,C&M-APMS Prem Actual Rent,PRC DELEGATED CO-COMMISSIONING,NHS BARNSLEY CCG GP PRACTICE,15611356,"4,744.50 "
Department of Health,NHS Barnsley CCG,31/01/2017,C&M-PMS Contract Value,PRC DELEGATED CO-COMMISSIONING,NHS BARNSLEY CCG GP PRACTICE,15611356,"15,738.82 "
Department of Health,NHS Barnsley CCG,31/01/2017,C&M-PMS Prem Healthcentre Rent,PRC DELEGATED CO-COMMISSIONING,NHS BARNSLEY CCG GP PRACTICE,15611356,12.41 
Department of Health,NHS Barnsley CCG,31/01/2017,C&M-PMS QOF Aspiration,PRC DELEGATED CO-COMMISSIONING,NHS BARNSLEY CCG GP PRACTICE,15611356,"1,422.76 "
Department of Health,NHS Barnsley CCG,31/12/2016,Hcare Srv Rec NHS Trust-CQUIN,ACUTE COMMISSIONING,LEEDS TEACHING HOSPITALS NHS TRUST,15427076,"5,746.35 "
Department of Health,NHS Barnsley CCG,31/12/2016,Hcare Srv Rec NHS Trust-Contract Baseline,ACUTE COMMISSIONING,LEEDS TEACHING HOSPITALS NHS TRUST,15427076,"69,626.95 "
Department of Health,NHS Barnsley CCG,31/01/2017,Hcare Srv Rec NHS Trust-CQUIN,ACUTE COMMISSIONING,MID YORKSHIRE HOSPITALS NHS TRUST,15693967,"2,195.00 "
Department of Health,NHS Barnsley CCG,31/01/2017,Hcare Srv Rec NHS Trust-Contract Baseline,ACUTE COMMISSIONING,MID YORKSHIRE HOSPITALS NHS TRUST,15693967,"205,233.00 "
Department of Health,NHS Barnsley CCG,31/01/2017,Clinical&Medical-Commercial Sector,ACUTE COMMISSIONING,ONEHEALTH GROUP,15553988,"124,842.18 "
Department of Health,NHS Barnsley CCG,31/01/2017,Clinical&Medical-Commercial Sector,ACUTE COMMISSIONING,ONEHEALTH GROUP,15754384,"102,782.68 "
Department of Health,NHS Barnsley CCG,31/01/2017,Clinical&Medical-Commercial Sector,ACUTE COMMISSIONING,ONEHEALTH GROUP,15836229,"68,347.87 "
Department of Health,NHS Barnsley CCG,31/01/2017,Computer Software/License,MEDICAL DIRECTORATE,OPTUM HEALTH SOLUTIONS (UK) LTD,15562087,"82,856.84 "
Department of Health,NHS Barnsley CCG,31/01/2017,Clinical&Medical-Commercial Sector,ACUTE COMMISSIONING,PAIN MANAGEMENT SOLUTIONS LTD,15754376,"29,134.67 "
Department of Health,NHS Barnsley CCG,31/01/2017,Hcare Srv Rec Fdtn Trust-CQUIN,MENTAL HEALTH CONTRACTS,ROTHERHAM DONCASTER & SOUTH HUMBER MENTAL HEALTH NHS FOUNDATION TRUST,15694119,674.86 
Department of Health,NHS Barnsley CCG,31/01/2017,Hcare Srv Rec Fdtn Trust-Contract Baseline,MENTAL HEALTH CONTRACTS,ROTHERHAM DONCASTER & SOUTH HUMBER MENTAL HEALTH NHS FOUNDATION TRUST,15694119,"49,161.69 "
Department of Health,NHS Barnsley CCG,31/01/2017,Cont Care-Learning Disab(<65),CHC ADULT FULLY FUNDED,ROTHERHAM METROPOLITAN BOROUGH COUNCIL,15661216,"42,035.43 "
Department of Health,NHS Barnsley CCG,31/01/2017,Cont Care-Learning Disab(<65),CHC ADULT FULLY FUNDED,ROTHERHAM METROPOLITAN BOROUGH COUNCIL,15661223,"42,035.43 "
Department of Health,NHS Barnsley CCG,31/01/2017,Cont Care-Learning Disab(<65),CHC ADULT FULLY FUNDED,ROTHERHAM METROPOLITAN BOROUGH COUNCIL,15661225,"(42,035.43)"
Department of Health,NHS Barnsley CCG,31/01/2017,Hcare Srv Rec Fdtn Trust-CQUIN,ACUTE COMMISSIONING,ROTHERHAM NHS FOUNDATION TRUST,15554005,"10,072.00 "
Department of Health,NHS Barnsley CCG,31/01/2017,Hcare Srv Rec Fdtn Trust-Contract Baseline,ACUTE COMMISSIONING,ROTHERHAM NHS FOUNDATION TRUST,15554005,"956,207.00 "
Department of Health,NHS Barnsley CCG,31/01/2017,Hcare Srv Rec Fdtn Trust-CQUIN,COMMUNITY SERVICES,ROTHERHAM NHS FOUNDATION TRUST,15554013,"1,019.00 "
Department of Health,NHS Barnsley CCG,31/01/2017,Hcare Srv Rec Fdtn Trust-Contract Baseline,COMMUNITY SERVICES,ROTHERHAM NHS FOUNDATION TRUST,15554013,"40,746.00 "
Department of Health,NHS Barnsley CCG,31/01/2017,C&M-PMS Contract Value,PRC DELEGATED CO-COMMISSIONING,NHS BARNSLEY CCG GP PRACTICE,15611585,"(32,412.67)"
Department of Health,NHS Barnsley CCG,31/01/2017,C&M-PMS GP Statutory Levy,PRC DELEGATED CO-COMMISSIONING,NHS BARNSLEY CCG GP PRACTICE,15611585,(167.75)
Department of Health,NHS Barnsley CCG,31/01/2017,C&M-PMS Out of Hours Opt Outs,PRC DELEGATED CO-COMMISSIONING,NHS BARNSLEY CCG GP PRACTICE,15611585,(447.85)
Department of Health,NHS Barnsley CCG,31/01/2017,C&M-PMS Voluntary Levy,PRC DELEGATED CO-COMMISSIONING,NHS BARNSLEY CCG GP PRACTICE,15611585,(29.34)
Department of Health,NHS Barnsley CCG,31/01/2017,ME-PMS GP Pension EEs-PMS,PRC DELEGATED CO-COMMISSIONING,NHS BARNSLEY CCG GP PRACTICE,15611585,(593.75)
Department of Health,NHS Barnsley CCG,31/01/2017,ME-PMS GP Pension ERs Adjs - PMS,PRC DELEGATED CO-COMMISSIONING,NHS BARNSLEY CCG GP PRACTICE,15611585,(679.25)
Department of Health,NHS Barnsley CCG,31/01/2017,C&M-PMS Baseline Adjustment,PRC DELEGATED CO-COMMISSIONING,NHS BARNSLEY CCG GP PRACTICE,15611586,407.50 
Department of Health,NHS Barnsley CCG,31/01/2017,C&M-PMS Contract Value,PRC DELEGATED CO-COMMISSIONING,NHS BARNSLEY CCG GP PRACTICE,15611586,"75,817.83 "
Department of Health,NHS Barnsley CCG,31/01/2017,C&M-PMS Out of Hours Opt Outs,PRC DELEGATED CO-COMMISSIONING,NHS BARNSLEY CCG GP PRACTICE,15611586,"(1,701.08)"
Department of Health,NHS Barnsley CCG,31/01/2017,C&M-PMS Prem Notional Rent,PRC DELEGATED CO-COMMISSIONING,NHS BARNSLEY CCG GP PRACTICE,15611586,"3,041.67 "
Department of Health,NHS Barnsley CCG,31/01/2017,C&M-PMS QOF Aspiration,PRC DELEGATED CO-COMMISSIONING,NHS BARNSLEY CCG GP PRACTICE,15611586,"2,458.56 "
Department of Health,NHS Barnsley CCG,31/01/2017,C&M-GMS DES Minor Surgery,PRC DELEGATED CO-COMMISSIONING,NHS BARNSLEY CCG GP PRACTICE,15848855,"1,065.50 "
Department of Health,NHS Barnsley CCG,31/01/2017,C&M-GMS Global Sum,PRC DELEGATED CO-COMMISSIONING,NHS BARNSLEY CCG GP PRACTICE,15848855,"56,938.76 "
Department of Health,NHS Barnsley CCG,31/01/2017,C&M-GMS Prem Actual Rent,PRC DELEGATED CO-COMMISSIONING,NHS BARNSLEY CCG GP PRACTICE,15848855,"4,750.00 "
Department of Health,NHS Barnsley CCG,31/01/2017,C&M-GMS QOF Aspiration,PRC DELEGATED CO-COMMISSIONING,NHS BARNSLEY CCG GP PRACTICE,15848855,"7,060.35 "
Department of Health,NHS Barnsley CCG,31/12/2016,Hcare Srv Rec Fdtn Trust-CQUIN,ACUTE COMMISSIONING,SHEFFIELD CHILDRENS NHS FOUNDATION TRUST,15322451,"2,045.48 "
Department of Health,NHS Barnsley CCG,31/12/2016,Hcare Srv Rec Fdtn Trust-Contract Baseline,ACUTE COMMISSIONING,SHEFFIELD CHILDRENS NHS FOUNDATION TRUST,15322451,"174,355.39 "
Department of Health,NHS Barnsley CCG,31/01/2017,Hcare Srv Rec Fdtn Trust-Contract Baseline,ACUTE COMMISSIONING,SHEFFIELD TEACHING HOSPITALS NHS FOUNDATION TRUST,15693978,"1,901,485.00 "
Department of Health,NHS Barnsley CCG,31/01/2017,Hcare Srv Rec Fdtn Trust-Contract Baseline,ACUTE COMMISSIONING,SHEFFIELD TEACHING HOSPITALS NHS FOUNDATION TRUST,15693982,"191,466.00 "
Department of Health,NHS Barnsley CCG,31/01/2017,Clinical&Medical-Voluntary Sector,CHILD AND ADOLESCENT MENTAL HEALTH,SOUTH WEST YORKSHIRE PARTNERSHIP NHS FOUNDATION TRUST,15556021,"143,000.00 "
Department of Health,NHS Barnsley CCG,31/01/2017,Hcare Srv Rec Fdtn Trust-CQUIN,COMMUNITY SERVICES,SOUTH WEST YORKSHIRE PARTNERSHIP NHS FOUNDATION TRUST,15556031,"83,145.68 "
Department of Health,NHS Barnsley CCG,31/01/2017,Hcare Srv Rec Fdtn Trust-CQUIN,LEARNING DIFFICULTIES,SOUTH WEST YORKSHIRE PARTNERSHIP NHS FOUNDATION TRUST,15556031,"4,628.49 "
Department of Health,NHS Barnsley CCG,31/01/2017,Hcare Srv Rec Fdtn Trust-CQUIN,MENTAL HEALTH SERVICES - ADULTS,SOUTH WEST YORKSHIRE PARTNERSHIP NHS FOUNDATION TRUST,15556031,"56,511.07 "
Department of Health,NHS Barnsley CCG,31/01/2017,Hcare Srv Rec Fdtn Trust-CQUIN,MENTAL HEALTH SERVICES - OLDER PEOPLE,SOUTH WEST YORKSHIRE PARTNERSHIP NHS FOUNDATION TRUST,15556031,"9,947.76 "
Department of Health,NHS Barnsley CCG,31/01/2017,Hcare Srv Rec Fdtn Trust-CQUIN,COMMUNITY SERVICES,SOUTH WEST YORKSHIRE PARTNERSHIP NHS FOUNDATION TRUST,15694061,"36,125.00 "
Department of Health,NHS Barnsley CCG,31/01/2017,Hcare Srv Rec Fdtn Trust-CQUIN,LEARNING DIFFICULTIES,SOUTH WEST YORKSHIRE PARTNERSHIP NHS FOUNDATION TRUST,15694061,"2,010.00 "
Department of Health,NHS Barnsley CCG,31/01/2017,Hcare Srv Rec Fdtn Trust-CQUIN,MENTAL HEALTH SERVICES - ADULTS,SOUTH WEST YORKSHIRE PARTNERSHIP NHS FOUNDATION TRUST,15694061,"24,553.00 "
Department of Health,NHS Barnsley CCG,31/01/2017,Hcare Srv Rec Fdtn Trust-CQUIN,MENTAL HEALTH SERVICES - OLDER PEOPLE,SOUTH WEST YORKSHIRE PARTNERSHIP NHS FOUNDATION TRUST,15694061,"4,322.00 "
Department of Health,NHS Barnsley CCG,31/01/2017,Hcare Srv Rec Fdtn Trust-Contract Baseline,COMMUNITY SERVICES,SOUTH WEST YORKSHIRE PARTNERSHIP NHS FOUNDATION TRUST,15694061,"2,901,982.00 "
Department of Health,NHS Barnsley CCG,31/01/2017,Hcare Srv Rec Fdtn Trust-Contract Baseline,LEARNING DIFFICULTIES,SOUTH WEST YORKSHIRE PARTNERSHIP NHS FOUNDATION TRUST,15694061,"160,876.00 "
Department of Health,NHS Barnsley CCG,31/01/2017,Hcare Srv Rec Fdtn Trust-Contract Baseline,MENTAL HEALTH SERVICES - ADULTS,SOUTH WEST YORKSHIRE PARTNERSHIP NHS FOUNDATION TRUST,15694061,"2,007,084.00 "
Department of Health,NHS Barnsley CCG,31/01/2017,Hcare Srv Rec Fdtn Trust-Contract Baseline,MENTAL HEALTH SERVICES - OLDER PEOPLE,SOUTH WEST YORKSHIRE PARTNERSHIP NHS FOUNDATION TRUST,15694061,"345,763.00 "
Department of Health,NHS Barnsley CCG,31/01/2017,C&M-PMS Contract Value,PRC DELEGATED CO-COMMISSIONING,NHS BARNSLEY CCG GP PRACTICE,15611353,"(60,818.15)"
Department of Health,NHS Barnsley CCG,31/01/2017,C&M-PMS GP Statutory Levy,PRC DELEGATED CO-COMMISSIONING,NHS BARNSLEY CCG GP PRACTICE,15611353,(289.57)
Department of Health,NHS Barnsley CCG,31/01/2017,C&M-PMS Out of Hours Opt Outs,PRC DELEGATED CO-COMMISSIONING,NHS BARNSLEY CCG GP PRACTICE,15611353,(86.60)
Department of Health,NHS Barnsley CCG,31/01/2017,C&M-PMS Prem Healthcentre Rent,PRC DELEGATED CO-COMMISSIONING,NHS BARNSLEY CCG GP PRACTICE,15611353,(0.88)
Department of Health,NHS Barnsley CCG,31/01/2017,C&M-PMS Voluntary Levy,PRC DELEGATED CO-COMMISSIONING,NHS BARNSLEY CCG GP PRACTICE,15611353,(50.65)
Department of Health,NHS Barnsley CCG,31/01/2017,ME-PMS GP Pension EEs-PMS,PRC DELEGATED CO-COMMISSIONING,NHS BARNSLEY CCG GP PRACTICE,15611353,"(1,615.80)"
Department of Health,NHS Barnsley CCG,31/01/2017,ME-PMS GP Pension ERs Adjs - PMS,PRC DELEGATED CO-COMMISSIONING,NHS BARNSLEY CCG GP PRACTICE,15611353,"(1,967.45)"
Department of Health,NHS Barnsley CCG,31/01/2017,C&M-PMS Contract Value,PRC DELEGATED CO-COMMISSIONING,NHS BARNSLEY CCG GP PRACTICE,15611354,"128,551.23 "
Department of Health,NHS Barnsley CCG,31/01/2017,C&M-PMS Out of Hours Opt Outs,PRC DELEGATED CO-COMMISSIONING,NHS BARNSLEY CCG GP PRACTICE,15611354,"(3,392.59)"
Department of Health,NHS Barnsley CCG,31/01/2017,C&M-PMS Prem Actual Rent,PRC DELEGATED CO-COMMISSIONING,NHS BARNSLEY CCG GP PRACTICE,15611354,336.75 
Department of Health,NHS Barnsley CCG,31/01/2017,C&M-PMS Prem Healthcentre Rent,PRC DELEGATED CO-COMMISSIONING,NHS BARNSLEY CCG GP PRACTICE,15611354,"15,940.23 "
Department of Health,NHS Barnsley CCG,31/01/2017,C&M-PMS QOF Aspiration,PRC DELEGATED CO-COMMISSIONING,NHS BARNSLEY CCG GP PRACTICE,15611354,"6,208.13 "
Department of Health,NHS Barnsley CCG,31/01/2017,C&M-PMS Contract Value,PRC DELEGATED CO-COMMISSIONING,NHS BARNSLEY CCG GP PRACTICE,15611578,"(33,272.47)"
Department of Health,NHS Barnsley CCG,31/01/2017,C&M-PMS GP Statutory Levy,PRC DELEGATED CO-COMMISSIONING,NHS BARNSLEY CCG GP PRACTICE,15611578,(154.68)
Department of Health,NHS Barnsley CCG,31/01/2017,C&M-PMS Out of Hours Opt Outs,PRC DELEGATED CO-COMMISSIONING,NHS BARNSLEY CCG GP PRACTICE,15611578,(27.15)
Department of Health,NHS Barnsley CCG,31/01/2017,C&M-PMS Voluntary Levy,PRC DELEGATED CO-COMMISSIONING,NHS BARNSLEY CCG GP PRACTICE,15611578,(27.06)
Department of Health,NHS Barnsley CCG,31/01/2017,ME-PMS GP Pension EEs-PMS,PRC DELEGATED CO-COMMISSIONING,NHS BARNSLEY CCG GP PRACTICE,15611578,(520.83)
Department of Health,NHS Barnsley CCG,31/01/2017,ME-PMS GP Pension ERs Adjs - PMS,PRC DELEGATED CO-COMMISSIONING,NHS BARNSLEY CCG GP PRACTICE,15611578,(595.83)
Department of Health,NHS Barnsley CCG,31/01/2017,C&M-PMS Contract Value,PRC DELEGATED CO-COMMISSIONING,NHS BARNSLEY CCG GP PRACTICE,15611579,"69,578.28 "
Department of Health,NHS Barnsley CCG,31/01/2017,C&M-PMS DES Learn Dsblty Hlth Chk,PRC DELEGATED CO-COMMISSIONING,NHS BARNSLEY CCG GP PRACTICE,15611579,"1,044.00 "
Department of Health,NHS Barnsley CCG,31/01/2017,C&M-PMS DES Minor Surgery,PRC DELEGATED CO-COMMISSIONING,NHS BARNSLEY CCG GP PRACTICE,15611579,"1,108.12 "
Department of Health,NHS Barnsley CCG,31/01/2017,C&M-PMS Out of Hours Opt Outs,PRC DELEGATED CO-COMMISSIONING,NHS BARNSLEY CCG GP PRACTICE,15611579,"(1,840.13)"
Department of Health,NHS Barnsley CCG,31/01/2017,C&M-PMS Prem Healthcentre Rent,PRC DELEGATED CO-COMMISSIONING,NHS BARNSLEY CCG GP PRACTICE,15611579,"1,189.84 "
Department of Health,NHS Barnsley CCG,31/01/2017,C&M-PMS Prem Notional Rent,PRC DELEGATED CO-COMMISSIONING,NHS BARNSLEY CCG GP PRACTICE,15611579,"28,675.00 "
Department of Health,NHS Barnsley CCG,31/01/2017,C&M-PMS Prem Rates,PRC DELEGATED CO-COMMISSIONING,NHS BARNSLEY CCG GP PRACTICE,15611579,"3,064.83 "
Department of Health,NHS Barnsley CCG,31/01/2017,C&M-PMS QOF Aspiration,PRC DELEGATED CO-COMMISSIONING,NHS BARNSLEY CCG GP PRACTICE,15611579,"4,059.35 "
Department of Health,NHS Barnsley CCG,31/01/2017,Hcare Srv Rec NHS Trust-Contract Baseline,PATIENT TRANSPORT,YORKSHIRE AMBULANCE SERVICE NHS TRUST,15594721,"125,707.67 "
Department of Health,NHS Barnsley CCG,31/01/2017,Hcare Srv Rec NHS Trust-Contract Baseline,AMBULANCE SERVICES,YORKSHIRE AMBULANCE SERVICE NHS TRUST,15594722,"608,043.00 "
Department of Health,NHS Barnsley CCG,31/01/2017,Hcare Srv Rec NHS Trust-Contract Baseline,NHS 111,YORKSHIRE AMBULANCE SERVICE NHS TRUST,15594725,"47,766.40 "
Department of Health,NHS Barnsley CCG,31/01/2017,Hcare Srv Rec NHS Trust-Non Contract,WINTER PRESSURES,YORKSHIRE AMBULANCE SERVICE NHS TRUST,15594726,"35,333.33 "
Department of Health,NHS Barnsley CCG,31/01/2017,Hcare Srv Rec NHS Trust-Non Contract,WINTER PRESSURES,YORKSHIRE AMBULANCE SERVICE NHS TRUST,15694005,"35,333.33 "
,,,,,,,"35,054,705.00 "
